bitfinex/quotes_BTCUSD_20251009
["timestamp","ask_amount","ask_price","bid_price","bid_amount"]
[1760029505947,0.50819566,120050.0,120040.0,0.08412206]
[1760029506189,0.25391566,120050.0,120040.0,0.08412206]
[1760029506400,1.2158138,120050.0,120040.0,0.001]
[1760029506619,1.5558138,120050.0,120040.0,0.001]
[1760029507047,1.3015738,120050.0,120040.0,0.001]
[1760029507504,0.93479566,120050.0,120040.0,0.08512206]
[1760029507665,1.3882138,120050.0,120040.0,0.08412206]
[1760029507996,0.16665277,120010.0,120000.0,0.06619503]
[1760029508201,0.99335091,120010.0,120000.0,0.08312206]
[1760029508415,0.16668055,119990.0,119980.0,0.06619503]
[1760029508584,0.45336055,119990.0,119980.0,0.14931709]
[1760029508821,0.03248,119990.0,119980.0,0.14931709]
[1760029509024,0.45336055,119990.0,119980.0,0.14931709]
[1760029509216,0.54012726,119990.0,119980.0,0.14931709]
[1760029509431,0.54012726,119990.0,119980.0,0.13132206]
[1760029509843,0.45348726,119990.0,119980.0,0.13132206]
[1760029510253,0.45348726,119990.0,119980.0,0.08312206]
[1760029510254,0.24878726,119990.0,119980.0,0.08312206]
[1760029510467,1.2106054,119990.0,119980.0,0.0826068]
[1760029510889,1.2106054,119990.0,119940.0,0.00139817]
[1760029510890,0.16672224,119960.0,119940.0,0.00139817]
[1760029511097,1.26355428,119950.0,119940.0,0.00139817]
[1760029511442,1.31352428,119950.0,119940.0,0.08452023]
[1760029511673,1.05936428,119950.0,119940.0,0.08452023]
[1760029511934,1.31352428,119950.0,119940.0,0.00139817]
[1760029512140,1.65348428,119950.0,119940.0,0.00139817]
[1760029512348,1.39949091,119950.0,119940.0,0.00139817]
[1760029512556,1.33441387,119950.0,119940.0,1e-08]
[1760029513016,0.62675573,119950.0,119940.0,1e-08]
[1760029513235,2.02181387,119950.0,119940.0,1e-08]
[1760029513707,2.18493273,119950.0,119940.0,1e-08]
[1760029514388,1.52768463,119950.0,119940.0,1e-08]
[1760029514586,2.13612783,119950.0,119940.0,1e-08]
[1760029515119,1.33541387,119950.0,119940.0,1e-08]
[1760029515335,2.02293387,119950.0,119940.0,1e-08]
[1760029515622,1.58953387,119950.0,119940.0,1e-08]
[1760029515828,1.33541387,119950.0,119940.0,1e-08]
[1760029516072,2.02293387,119950.0,119940.0,1e-08]
[1760029516733,1.33541387,119950.0,119940.0,1e-08]
[1760029516953,2.02293387,119950.0,119940.0,1e-08]
[1760029517184,2.20821513,119950.0,119940.0,1e-08]
[1760029517624,2.56833512,119950.0,119940.0,1e-08]
[1760029517841,2.69738526,119950.0,119940.0,1e-08]
[1760029518269,1.91217526,119950.0,119940.0,1e-08]
[1760029518482,1.88817527,119950.0,119940.0,1e-08]
[1760029518688,2.73411783,119950.0,119940.0,1e-08]
[1760029519545,2.73529573,119950.0,119940.0,1e-08]
[1760029519719,2.73429573,119950.0,119940.0,1e-08]
[1760029519971,1.79997572,119950.0,119940.0,1e-08]
[1760029520181,2.91537252,119950.0,119940.0,1e-08]
[1760029520400,1.17260648,119950.0,119940.0,1e-08]
[1760029520608,2.38232253,119950.0,119940.0,1e-08]
[1760029520811,2.81580253,119950.0,119940.0,1e-08]
[1760029521034,1.80144572,119950.0,119940.0,1e-08]
[1760029521276,2.17027689,119950.0,119940.0,1e-08]
[1760029522133,2.20042879,119950.0,119940.0,1e-08]
[1760029522948,1.61286878,119950.0,119940.0,1e-08]
[1760029523176,2.64730878,119950.0,119940.0,1e-08]
[1760029523403,2.72730558,119950.0,119940.0,1e-08]
[1760029523848,1.69286558,119950.0,119940.0,1e-08]
[1760029524089,2.72730558,119950.0,119940.0,1e-08]
[1760029524287,1.59286559,119950.0,119940.0,1e-08]
[1760029524667,2.72726558,119950.0,119940.0,1e-08]
[1760029525207,2.62726559,119950.0,119940.0,1e-08]
[1760029525544,2.29374558,119950.0,119940.0,1e-08]
[1760029525771,2.19374559,119950.0,119940.0,1e-08]
[1760029525986,1.69286558,119950.0,119940.0,1e-08]
[1760029526205,2.64738878,119950.0,119940.0,1e-08]
[1760029526890,1.61286878,119950.0,119940.0,1e-08]
[1760029527110,2.64738878,119950.0,119940.0,1e-08]
[1760029527332,2.54738879,119950.0,119940.0,1e-08]
[1760029527545,2.72738558,119950.0,119940.0,1e-08]
[1760029527762,2.62738559,119950.0,119940.0,1e-08]
[1760029528004,2.72738558,119950.0,119940.0,1e-08]
[1760029528663,2.62738559,119950.0,119940.0,1e-08]
[1760029528886,2.72738558,119950.0,119940.0,1e-08]
[1760029529106,2.75238557,119950.0,119940.0,1e-08]
[1760029529744,0.50680567,119900.0,119870.0,0.06619503]
[1760029529961,0.7854026,119880.0,119870.0,0.06619503]
[1760029530168,0.7863726,119880.0,119870.0,0.06619503]
[1760029530581,0.2661135,119880.0,119870.0,0.14931709]
[1760029530791,0.5200735,119880.0,119870.0,0.14931709]
[1760029530999,0.60692005,119880.0,119870.0,0.08312206]
[1760029531210,0.78749915,119880.0,119870.0,0.08312206]
[1760029531413,1.12717915,119880.0,119870.0,0.08312206]
[1760029531792,1.12717915,119880.0,119870.0,0.08412206]
[1760029532243,0.96034565,119880.0,119870.0,0.08412206]
[1760029532453,1.12717915,119880.0,119870.0,0.08412206]
[1760029532835,1.12717915,119880.0,119870.0,0.08312206]
[1760029533294,0.18515655,119880.0,119870.0,0.08412206]
[1760029533529,0.18515655,119880.0,119870.0,0.13019206]
[1760029533530,0.55548005,119880.0,119870.0,0.13019206]
[1760029533750,0.51870005,119880.0,119870.0,0.08412206]
[1760029533994,0.60542005,119880.0,119870.0,0.08412206]
[1760029534301,1.20713595,119880.0,119870.0,0.08412206]
[1760029534563,1.46713915,119880.0,119870.0,0.001]
[1760029534764,0.94688005,119880.0,119870.0,0.001]
[1760029534982,1.38041915,119880.0,119870.0,0.001]
[1760029535204,1.46713915,119880.0,119870.0,0.001]
[1760029535406,1.46709915,119880.0,119870.0,0.001]
[1760029535591,0.78649915,119880.0,119870.0,0.001]
[1760029535833,0.60684005,119880.0,119870.0,0.08679216]
[1760029536250,0.26624005,119880.0,119870.0,0.08679216]
[1760029536433,0.26478005,119880.0,119870.0,0.08679216]
[1760029536593,0.60684005,119880.0,119870.0,0.08679216]
[1760029537213,0.51866005,119880.0,119870.0,0.08679216]
[1760029537441,0.60538005,119880.0,119870.0,0.08679216]
[1760029537587,1.12709915,119880.0,119870.0,0.08679216]
[1760029537987,0.26624005,119880.0,119870.0,0.08679216]
[1760029538195,0.04800655,119880.0,119870.0,0.08679216]
[1760029538399,0.16745005,119880.0,119870.0,0.08679216]
[1760029538620,0.25445655,119880.0,119870.0,0.08679216]
[1760029538840,0.47030005,119880.0,119870.0,0.08679216]
[1760029539045,0.99055915,119880.0,119870.0,0.08679216]
[1760029539691,0.99055915,119880.0,119870.0,0.08779216]
[1760029540098,0.00061655,119880.0,119870.0,0.08779216]
[1760029540303,0.50801005,119880.0,119870.0,0.08779216]
[1760029540547,0.50801005,119880.0,119870.0,0.08879216]
[1760029540885,0.21646005,119880.0,119870.0,0.08879216]
[1760029541066,0.55698005,119880.0,119870.0,0.08879216]
[1760029542536,0.21646005,119880.0,119870.0,0.08879216]
[1760029542743,0.55694005,119880.0,119870.0,0.08879216]
[1760029543181,0.00012655,119880.0,119870.0,0.10038505]
[1760029543394,0.25388655,119880.0,119870.0,0.45843957]
[1760029543607,0.99048915,119880.0,119870.0,0.08879216]
[1760029543829,0.99048915,119880.0,119870.0,0.08779216]
[1760029544021,0.99048915,119880.0,119870.0,0.08679216]
[1760029544274,0.99048915,119880.0,119870.0,0.08879216]
[1760029544484,0.55695005,119880.0,119870.0,0.08879216]
[1760029544692,0.55695005,119880.0,119870.0,0.08779216]
[1760029545315,1.07720915,119880.0,119870.0,0.08779216]
[1760029545541,1.07720915,119880.0,119870.0,0.08679216]
[1760029545761,0.55695005,119880.0,119870.0,0.08679216]
[1760029545973,0.50842005,119880.0,119870.0,0.08679216]
[1760029546107,0.55695005,119880.0,119870.0,0.08679216]
[1760029546528,0.08782655,119880.0,119870.0,0.08679216]
[1760029546773,0.08782655,119880.0,119870.0,0.36724957]
[1760029546774,0.34052655,119880.0,119870.0,0.36724957]
[1760029547010,0.00012655,119880.0,119870.0,0.36724957]
[1760029547144,0.25380655,119880.0,119870.0,0.36724957]
[1760029547343,0.25380655,119880.0,119870.0,0.30094957]
[1760029547344,0.00158655,119880.0,119870.0,0.30094957]
[1760029547543,0.25380655,119880.0,119870.0,0.36724957]
[1760029547755,0.25380655,119880.0,119870.0,0.46226957]
[1760029547956,0.25376655,119880.0,119870.0,0.46226957]
[1760029548379,0.25376655,119880.0,119870.0,0.96226957]
[1760029548751,0.00012655,119880.0,119870.0,1.51268057]
[1760029550433,0.00012655,119880.0,119870.0,1.51468057]
[1760029550667,0.00012655,119880.0,119870.0,1.48552867]
[1760029551288,0.00012655,119880.0,119870.0,1.51568057]
[1760029551943,0.00012655,119880.0,119870.0,1.51368057]
[1760029552169,0.00012655,119880.0,119870.0,1.57870972]
[1760029552407,0.00012655,119880.0,119870.0,1.57970972]
[1760029552609,0.00012655,119880.0,119870.0,1.02629872]
[1760029553087,0.00012655,119880.0,119870.0,1.54855782]
[1760029553303,0.00012655,119880.0,119870.0,1.60370971]
[1760029553512,0.00012655,119880.0,119870.0,1.60270971]
[1760029553743,0.27786394,119930.0,119910.0,0.16677935]
[1760029553944,0.01392,119920.0,119910.0,0.2145962]
[1760029554170,0.01392,119920.0,119910.0,0.29771826]
[1760029554370,0.16677785,119920.0,119910.0,0.29771826]
[1760029554589,0.53138394,119930.0,119910.0,0.29271826]
[1760029554810,0.53138394,119930.0,119920.0,0.08312206]
[1760029555021,0.02438,119930.0,119920.0,0.31619991]
[1760029555224,0.25348,119930.0,119920.0,0.36350991]
[1760029556318,0.25348,119930.0,119920.0,0.45852991]
[1760029556548,0.19139077,119940.0,119920.0,0.45852991]
[1760029556762,0.44483077,119940.0,119920.0,0.45852991]
[1760029557014,0.44483005,119940.0,119920.0,0.45852991]
[1760029557234,0.19127394,119930.0,119920.0,0.36350991]
[1760029557466,0.02451,119930.0,119920.0,0.36350991]
[1760029557668,0.02451,119930.0,119920.0,0.08312206]
[1760029557669,0.76103304,119930.0,119920.0,0.08312206]
[1760029558112,1.01443304,119930.0,119920.0,0.08312206]
[1760029558364,0.19164394,119930.0,119920.0,0.08312206]
[1760029558585,0.278,119940.0,119920.0,0.36350991]
[1760029558804,0.44475069,119940.0,119930.0,0.08312206]
[1760029559238,0.04814,119950.0,119940.0,0.16675004]
[1760029559456,0.04814,119950.0,119940.0,0.3634821]
[1760029559457,0.25336,119950.0,119940.0,0.3634821]
[1760029559678,0.25336,119950.0,119940.0,0.19673206]
[1760029559904,0.46825614,119950.0,119940.0,0.08312206]
[1760029560335,0.51773614,119950.0,119940.0,0.08312206]
[1760029560802,0.04767,119950.0,119940.0,0.08312206]
[1760029561017,0.02603805,119960.0,119950.0,0.16673614]
[1760029561232,0.27935805,119960.0,119950.0,0.3634682]
[1760029561456,0.44608029,119960.0,119950.0,0.3634682]
[1760029561684,0.44608029,119960.0,119950.0,0.19673206]
[1760029561907,0.44608029,119960.0,119950.0,0.2971682]
[1760029562135,0.27931805,119960.0,119950.0,0.3634682]
[1760029562348,0.29200802,119960.0,119950.0,0.36362032]
[1760029562805,0.12528578,119960.0,119950.0,0.36362032]
[1760029563484,0.16672224,119960.0,119950.0,0.36362032]
[1760029563706,0.02451,119970.0,119960.0,0.16672224]
[1760029563922,0.19819,119970.0,119960.0,0.3592843]
[1760029564149,0.16669468,119980.0,119960.0,0.4503343]
[1760029564421,0.25324,119980.0,119970.0,0.31446639]
[1760029564622,0.53139938,120010.0,119980.0,0.16669444]
[1760029564857,0.16666727,120000.0,119990.0,0.09406626]
[1760029565088,0.16669444,119980.0,119970.0,0.04944]
[1760029565300,0.16670834,119970.0,119960.0,0.21616172]
[1760029565606,0.19122834,119970.0,119960.0,0.13256206]
[1760029565870,0.19122834,119970.0,119960.0,0.3592843]
[1760029565871,0.02452,119970.0,119960.0,0.3592843]
[1760029566142,0.19135519,119970.0,119960.0,0.08312206]
[1760029566423,0.02464685,119970.0,119960.0,0.19256206]
[1760029566687,0.19135519,119970.0,119960.0,0.3592843]
[1760029567116,0.00012685,119970.0,119960.0,0.4503343]
[1760029568002,0.24744783,119980.0,119960.0,0.4503343]
[1760029568217,0.1995352,119990.0,119970.0,0.29927024]
[1760029568437,0.25312,119980.0,119970.0,0.39032024]
[1760029568652,0.25312,119980.0,119970.0,0.45032024]
[1760029568838,0.25308,119980.0,119970.0,0.45032024]
[1760029569076,0.16669444,119980.0,119970.0,0.19256206]
[1760029569302,0.41977444,119980.0,119970.0,0.3592704]
[1760029570167,0.41977444,119980.0,119970.0,0.08312206]
[1760029570383,0.45900444,119980.0,119970.0,0.08312206]
[1760029570608,0.97926354,119980.0,119970.0,0.08312206]
[1760029570814,0.98031106,119980.0,119970.0,0.08312206]
[1760029571249,0.72723106,119980.0,119970.0,0.08312206]
[1760029571465,1.40691106,119980.0,119970.0,0.08312206]
[1760029571677,1.06723106,119980.0,119970.0,0.08312206]
[1760029572102,1.40691106,119980.0,119970.0,0.08312206]
[1760029572533,0.16670834,119970.0,119960.0,0.00015212]
[1760029572757,0.5202591,119970.0,119960.0,0.08327418]
[1760029572963,0.54557834,119970.0,119960.0,0.08327418]
[1760029573393,0.45889834,119970.0,119960.0,0.08327418]
[1760029574963,0.45885834,119970.0,119960.0,0.08327418]
[1760029575177,0.54553834,119970.0,119960.0,0.08327418]
[1760029575385,0.20593834,119970.0,119960.0,0.08327418]
[1760029575593,0.45885834,119970.0,119960.0,0.08327418]
[1760029576236,0.54553834,119970.0,119960.0,0.08327418]
[1760029576447,0.54553834,119970.0,119960.0,0.19271418]
[1760029576448,0.41958834,119970.0,119960.0,0.19271418]
[1760029576656,0.16670834,119970.0,119960.0,0.19271418]
[1760029576862,0.16669444,119980.0,119970.0,0.16670834]
[1760029577080,0.19953552,119990.0,119970.0,0.08312206]
[1760029577300,0.19953552,119990.0,119980.0,0.22285467]
[1760029577301,0.1112,119990.0,119980.0,0.22285467]
[1760029577542,0.2774,119990.0,119980.0,0.4503065]
[1760029577752,0.02452,120000.0,119990.0,0.16666824]
[1760029577962,0.27736,120000.0,119990.0,0.13256206]
[1760029578183,0.19118666,120000.0,119990.0,0.35924261]
[1760029578406,0.2794547,120000.0,119990.0,0.35924261]
[1760029578621,0.2794547,120000.0,119990.0,0.45029261]
[1760029578849,0.19328136,120000.0,119990.0,0.35924261]
[1760029579062,0.44612136,120000.0,119990.0,0.35924261]
[1760029579509,0.2548947,120000.0,119990.0,0.45029261]
[1760029579724,0.0020947,120000.0,119990.0,0.45029261]
[1760029579942,0.0020947,120000.0,119990.0,1.0816814]
[1760029580392,0.0020947,120000.0,119990.0,1.45938245]
[1760029582160,0.0020947,120000.0,119990.0,1.82438244]
[1760029584097,0.0020947,120000.0,119990.0,1.57158244]
[1760029584331,0.0266147,120000.0,119990.0,0.35924261]
[1760029584550,0.0266147,120000.0,119990.0,0.45029261]
[1760029584770,0.0266147,120000.0,119990.0,0.48044451]
[1760029584771,0.0020947,120000.0,119990.0,0.48044451]
[1760029584981,0.16876136,120000.0,119990.0,0.28361206]
[1760029585200,0.16876136,120000.0,119990.0,0.64207451]
[1760029585440,0.0020947,120000.0,119990.0,0.73312451]
[1760029585654,0.0020947,120000.0,119990.0,0.48044451]
[1760029586549,0.0020947,120000.0,119990.0,0.73308451]
[1760029586764,0.0020947,120000.0,119990.0,0.48044451]
[1760029586977,0.16876136,120000.0,119990.0,0.64199451]
[1760029587200,0.0020947,120000.0,119990.0,0.48044451]
[1760029587421,0.0002,120010.0,120000.0,0.16666666]
[1760029587636,0.0002,120010.0,120000.0,1.1875454]
[1760029587864,0.0002,120010.0,120000.0,0.48043062]
[1760029588496,0.0002,120010.0,120000.0,0.73299062]
[1760029589171,0.0002,120010.0,120000.0,0.48043062]
[1760029589380,0.0002,120010.0,120000.0,1.4401054]
[1760029589826,0.0002,120010.0,120000.0,1.5275454]
[1760029590048,0.0002,120010.0,120000.0,1.80506539]
[1760029590728,0.0002,120010.0,120000.0,1.55254539]
[1760029591639,0.0002,120010.0,120000.0,0.82043062]
[1760029591868,0.0002,120010.0,120000.0,1.07291062]
[1760029593239,0.00072354,120010.0,120000.0,1.07291062]
[1760029593466,0.00072354,120010.0,120000.0,0.22271396]
[1760029593712,0.00072354,120010.0,120000.0,0.48032062]
[1760029593947,0.00072354,120010.0,120000.0,0.73276062]
[1760029594186,0.00072354,120010.0,120000.0,0.48032062]
[1760029594428,0.16737631,120010.0,120000.0,0.19256206]
[1760029595120,0.16737631,120010.0,120000.0,0.08312206]
[1760029595121,0.19053631,120010.0,120000.0,0.08312206]
[1760029595822,1.26423109,120010.0,120000.0,0.08312206]
[1760029596043,1.60323109,120010.0,120000.0,0.08312206]
[1760029596273,0.89611631,120010.0,120000.0,0.08312206]
[1760029596994,0.16666666,120000.0,119990.0,0.5]
[1760029597216,1.24036144,120000.0,119990.0,0.5]
[1760029597445,1.26355144,120000.0,119990.0,0.5]
[1760029597892,0.18985666,120000.0,119990.0,0.58312206]
[1760029598130,0.30303666,120000.0,119990.0,0.58312206]
[1760029598355,1.26347144,120000.0,119990.0,0.5]
[1760029599484,0.92551144,120000.0,119990.0,0.5]
[1760029599765,1.26447144,120000.0,119990.0,0.5]
[1760029600392,0.21839666,120000.0,119990.0,0.5]
[1760029600618,0.21839666,120000.0,119990.0,0.58312206]
[1760029600808,0.47067666,120000.0,119990.0,0.58312206]
[1760029601069,1.26443144,120000.0,119990.0,0.58312206]
[1760029601515,0.53077666,120000.0,119990.0,0.58312206]
[1760029601947,0.27849666,120000.0,119990.0,0.58312206]
[1760029602163,0.53077666,120000.0,119990.0,0.58312206]
[1760029602573,0.30503666,120000.0,119990.0,0.58312206]
[1760029602783,1.01215144,120000.0,119990.0,0.5]
[1760029602989,1.60439144,120000.0,119990.0,0.5]
[1760029603614,0.81063666,120000.0,119990.0,0.5]
[1760029603823,1.60439144,120000.0,119990.0,0.5]
[1760029604573,1.60435144,120000.0,119990.0,0.5]
[1760029606312,0.55839666,120000.0,119990.0,0.5]
[1760029606519,1.60431144,120000.0,119990.0,0.5]
[1760029607775,1.26551144,120000.0,119990.0,0.5]
[1760029608192,0.21839666,120000.0,119990.0,0.5]
[1760029608496,0.55719666,120000.0,119990.0,0.58312206]
[1760029608715,0.30503666,120000.0,119990.0,0.58312206]
[1760029608995,0.53065666,120000.0,119990.0,0.58312206]
[1760029609188,0.19185666,120000.0,119990.0,0.74980261]
[1760029609402,0.53061666,120000.0,119990.0,0.74980261]
[1760029609614,0.53061666,120000.0,119990.0,0.58312206]
[1760029609846,0.19185666,120000.0,119990.0,0.58312206]
[1760029610075,0.02519,120000.0,119990.0,0.74980261]
[1760029610292,0.42078666,120000.0,119990.0,0.85963261]
[1760029610503,0.25412,120000.0,119990.0,0.95354261]
[1760029610717,0.25412,120000.0,119990.0,0.85963261]
[1760029611408,0.25412,120000.0,119990.0,0.95354261]
[1760029612354,0.25412,120000.0,119990.0,0.85963261]
[1760029613337,0.16737631,120010.0,120000.0,0.16666666]
[1760029613544,0.18982666,120000.0,119990.0,0.5]
[1760029613748,0.18982666,120000.0,119990.0,0.58312206]
[1760029614522,0.46840666,120000.0,119990.0,0.58312206]
[1760029615238,0.47040666,120000.0,119990.0,0.58312206]
[1760029616217,0.21840666,120000.0,119990.0,0.58312206]
[1760029616422,0.47036666,120000.0,119990.0,0.58312206]
[1760029616623,0.81036666,120000.0,119990.0,0.58312206]
[1760029617333,0.81032666,120000.0,119990.0,0.58312206]
[1760029618021,0.55840666,120000.0,119990.0,0.58312206]
[1760029618225,0.87038666,120000.0,119990.0,0.58312206]
[1760029618522,0.89696666,120000.0,119990.0,0.58312206]
[1760029619268,0.81032666,120000.0,119990.0,0.58312206]
[1760029619418,0.53034666,120000.0,119990.0,0.58312206]
[1760029620622,0.002,120000.0,119990.0,1.66065739]
[1760029620826,0.002,120000.0,119990.0,1.69080929]
[1760029621029,0.002,120000.0,119990.0,2.03080929]
[1760029621210,0.00072354,120010.0,120000.0,0.53681856]
[1760029621400,0.00072354,120010.0,120000.0,1.7192754]
[1760029621606,0.00072354,120010.0,120000.0,1.7826354]
[1760029622818,0.00076354,120010.0,120000.0,1.7825954]
[1760029623023,0.00076354,120010.0,120000.0,1.84521163]
[1760029623220,0.00076354,120010.0,120000.0,1.59341163]
[1760029623535,0.00076354,120010.0,120000.0,0.19295206]
[1760029623771,0.24598631,120010.0,120000.0,0.08312206]
[1760029623979,0.49774631,120010.0,120000.0,0.08312206]
[1760029624213,0.24180631,120010.0,120000.0,0.08312206]
[1760029624438,0.24180631,120010.0,119990.0,0.5]
[1760029624439,0.16666666,120000.0,119990.0,0.5]
[1760029624639,0.92373144,120000.0,119990.0,0.5]
[1760029625088,1.26373144,120000.0,119990.0,0.5]
[1760029625295,0.55661666,120000.0,119990.0,0.5]
[1760029625505,1.60209144,120000.0,119990.0,0.5]
[1760029625744,1.68208824,120000.0,119990.0,0.5]
[1760029626999,1.61958668,120000.0,119990.0,0.5]
[1760029627216,1.62058668,120000.0,119990.0,0.5]
[1760029627427,0.50668055,119990.0,119980.0,0.00139752]
[1760029627649,1.46547533,119990.0,119980.0,0.00139752]
[1760029627840,1.51042533,119990.0,119980.0,0.00139752]
[1760029628053,1.34374213,119990.0,119980.0,0.00139752]
[1760029628465,1.59542213,119990.0,119980.0,0.00139752]
[1760029628673,1.40705109,119990.0,119980.0,0.00139752]
[1760029628873,1.57869429,119990.0,119980.0,0.00139752]
[1760029629085,2.01197429,119990.0,119980.0,0.00139752]
[1760029629505,2.01297429,119990.0,119980.0,0.00139752]
[1760029630132,0.55863055,119990.0,119980.0,0.00139752]
[1760029630334,0.96974298,119990.0,119980.0,0.00139752]
[1760029630547,1.56306353,119990.0,119980.0,0.00139752]
[1760029630747,1.47638353,119990.0,119980.0,0.00139752]
[1760029630959,1.22474353,119990.0,119980.0,0.00139752]
[1760029631163,0.85090875,119990.0,119980.0,0.00139752]
[1760029631381,0.51262875,119990.0,119980.0,0.00139752]
[1760029631614,0.85090875,119990.0,119980.0,0.00139752]
[1760029631838,0.85086875,119990.0,119980.0,0.00139752]
[1760029632516,1.55798353,119990.0,119980.0,0.00139752]
[1760029632971,1.21974353,119990.0,119980.0,0.00139752]
[1760029633187,1.55798353,119990.0,119980.0,0.00139752]
[1760029633830,1.21974353,119990.0,119980.0,0.00139752]
[1760029634085,0.85086875,119990.0,119980.0,0.08451958]
[1760029634292,0.51262875,119990.0,119980.0,0.08451958]
[1760029634649,0.85082875,119990.0,119980.0,0.08451958]
[1760029635937,1.55794353,119990.0,119980.0,0.08451958]
[1760029636241,1.55790353,119990.0,119980.0,0.08451958]
[1760029636444,0.85078875,119990.0,119980.0,0.08451958]
[1760029636663,0.76414875,119990.0,119980.0,0.08451958]
[1760029636879,0.85078875,119990.0,119980.0,0.08451958]
[1760029637649,0.85082875,119990.0,119980.0,0.08451958]
[1760029637903,1.55794353,119990.0,119980.0,0.08451958]
[1760029638519,0.76414875,119990.0,119980.0,0.08451958]
[1760029638826,0.85078875,119990.0,119980.0,0.08451958]
[1760029639441,1.55790353,119990.0,119980.0,0.08451958]
[1760029640031,1.21978353,119990.0,119980.0,0.08451958]
[1760029640261,1.55790353,119990.0,119980.0,0.08451958]
[1760029640472,1.21978353,119990.0,119980.0,0.08451958]
[1760029640887,1.55786353,119990.0,119980.0,0.08451958]
[1760029641505,0.85074875,119990.0,119980.0,0.08451958]
[1760029642357,0.85070875,119990.0,119980.0,0.08451958]
[1760029642560,1.28369442,119990.0,119980.0,0.08451958]
[1760029642785,1.37037442,119990.0,119980.0,0.08451958]
[1760029643985,1.45037122,119990.0,119980.0,0.08451958]
[1760029644192,1.37037442,119990.0,119980.0,0.08451958]
[1760029644396,1.37037442,119990.0,119980.0,0.00139752]
[1760029644572,0.16673614,119950.0,119940.0,0.06619503]
[1760029644776,0.41805614,119950.0,119940.0,0.14946921]
[1760029645361,0.93772181,119950.0,119940.0,0.08327418]
[1760029645605,0.41805614,119950.0,119940.0,0.08327418]
[1760029645942,0.93772181,119950.0,119940.0,0.08327418]
[1760029646359,0.16673614,119950.0,119940.0,0.25102422]
[1760029646572,0.50672252,119960.0,119940.0,0.36159422]
[1760029646774,0.50672252,119960.0,119940.0,0.36059422]
[1760029647023,0.16673614,119950.0,119940.0,0.36059422]
[1760029647237,0.17506278,119980.0,119950.0,0.17507294]
[1760029647443,0.08668,119980.0,119970.0,0.27727834]
[1760029647649,0.50461444,119980.0,119970.0,0.3604004]
[1760029648062,0.25124,119980.0,119970.0,0.3604004]
[1760029648299,0.41793444,119980.0,119970.0,0.3604004]
[1760029648513,0.25124,119980.0,119970.0,0.3604004]
[1760029649247,0.41793444,119980.0,119970.0,0.3604004]
[1760029649709,0.41793444,119980.0,119970.0,0.12926206]
[1760029649939,0.41793444,119980.0,119970.0,0.2959704]
[1760029650373,0.41793444,119980.0,119970.0,0.12926206]
[1760029650632,0.25116,119980.0,119970.0,0.37741539]
[1760029650855,4e-05,119990.0,119980.0,0.16669444]
[1760029651073,0.41788055,119990.0,119980.0,0.08312206]
[1760029651289,4e-05,119990.0,119980.0,0.3603865]
[1760029651470,0.2512,119990.0,119980.0,0.4522065]
[1760029651933,0.25116,119990.0,119980.0,0.4522065]
[1760029652150,4e-05,119990.0,119980.0,0.4522065]
[1760029652368,0.25216,119990.0,119980.0,0.4522065]
[1760029652586,0.41884055,119990.0,119980.0,0.3603865]
[1760029653006,0.00204,119990.0,119980.0,0.3603865]
[1760029653228,0.00204,119990.0,119980.0,0.4547565]
[1760029653453,0.25312,119990.0,119980.0,0.4547565]
[1760029653634,0.00204,119990.0,119980.0,0.4849084]
[1760029653851,0.00204,119990.0,119980.0,0.54597877]
[1760029654269,4e-05,119990.0,119980.0,0.54597877]
[1760029654515,4e-05,119990.0,119980.0,0.45160877]
[1760029654737,4e-05,119990.0,119980.0,0.54597877]
[1760029655157,4e-05,119990.0,119980.0,1.06564444]
[1760029655358,4e-05,119990.0,119980.0,0.54597877]
[1760029656644,4e-05,119990.0,119980.0,1.43064443]
[1760029656852,1.04154034,120050.0,120030.0,0.16661476]
[1760029656853,0.68626316,120050.0,120030.0,0.16661476]
[1760029657032,0.68626316,120050.0,120040.0,0.08312206]
[1760029657033,0.1667496,120050.0,120040.0,0.08312206]
[1760029657346,0.93737527,120050.0,120040.0,0.08312206]
[1760029657555,0.4177096,120050.0,120040.0,0.08312206]
[1760029657758,0.93737527,120050.0,120040.0,0.08312206]
[1760029657965,1.27737527,120050.0,120040.0,0.08312206]
[1760029658180,0.41770936,120050.0,120040.0,0.19765206]
[1760029658628,0.68641503,120050.0,120040.0,0.19765206]
[1760029658835,0.93733503,120050.0,120040.0,0.13173206]
[1760029659675,0.41766936,120050.0,120040.0,0.19765206]
[1760029659884,0.16674936,120050.0,120040.0,0.19765206]
[1760029660467,0.41762936,120050.0,120040.0,0.08312206]
[1760029660675,0.93729503,120050.0,120040.0,0.08312206]
[1760029661666,0.25099211,120050.0,120040.0,0.36426318]
[1760029662251,0.00019211,120050.0,120040.0,0.19765206]
[1760029662474,0.00280896,120050.0,120040.0,0.45863318]
[1760029662609,0.16940621,120050.0,120040.0,0.45863318]
[1760029662811,0.42016621,120050.0,120040.0,0.36426318]
[1760029663415,0.93983188,120050.0,120040.0,0.13173206]
[1760029663661,0.93983188,120050.0,120040.0,0.29834318]
[1760029663981,0.25356896,120050.0,120040.0,0.36426318]
[1760029664184,0.42016621,120050.0,120040.0,0.36426318]
[1760029664387,0.93979188,120050.0,120040.0,0.08312206]
[1760029664589,0.93979188,120050.0,120040.0,0.24973318]
[1760029665010,0.93979188,120050.0,120040.0,0.08312206]
[1760029666362,0.93971188,120050.0,120040.0,0.08312206]
[1760029666486,0.68907188,120050.0,120040.0,0.08312206]
[1760029666685,0.93971188,120050.0,120040.0,0.08312206]
[1760029667237,0.94071188,120050.0,120040.0,0.08312206]
[1760029667468,0.94067188,120050.0,120040.0,0.08312206]
[1760029667677,0.69007188,120050.0,120040.0,0.24973318]
[1760029667858,0.25440896,120050.0,120040.0,0.35918318]
[1760029668069,0.00380896,120050.0,120040.0,0.45431318]
[1760029668908,0.00380896,120050.0,120040.0,1.34413075]
[1760029669126,0.00480896,120050.0,120040.0,1.59469075]
[1760029669326,0.00480896,120050.0,120040.0,1.6196929]
[1760029669887,0.00380896,120050.0,120040.0,1.6196929]
[1760029670093,0.00280896,120050.0,120040.0,1.6206929]
[1760029670296,0.00280896,120050.0,120040.0,1.6216929]
[1760029670498,0.00280896,120050.0,120040.0,1.10202723]
[1760029670699,0.00280896,120050.0,120040.0,1.6206529]
[1760029670922,0.00280896,120050.0,120040.0,1.7072929]
[1760029671813,0.00280896,120050.0,120040.0,1.10094723]
[1760029672016,0.00280896,120050.0,120040.0,1.18854723]
[1760029672634,0.00280896,120050.0,120040.0,0.85146723]
[1760029672834,0.00280896,120050.0,120040.0,1.18750723]
[1760029673227,0.00280896,120050.0,120040.0,1.18650723]
[1760029673431,0.00280896,120050.0,120040.0,0.84946723]
[1760029673832,0.00280896,120050.0,120040.0,0.73486508]
[1760029674979,0.00280896,120050.0,120040.0,0.48446508]
[1760029675178,0.00280896,120050.0,120040.0,0.19257206]
[1760029675389,0.00280896,120050.0,120040.0,0.45431318]